fUSD/lending_fUSD_20251201
["ID","MTS","AMOUNT","RATE_DAILY","PERIOD"]
[395309003,1764607846207,-174.71790822,0.00016973,2]
[395309004,1764607846217,-271.0,0.00016983,2]
[395309005,1764607846371,-500.0,0.00016983,2]
[395309006,1764607846381,-150.0,0.00016986,2]
[395309007,1764607846390,-150.0,0.00016986,2]
[395309008,1764607846400,-150.0,0.00016986,2]
[395309009,1764607846409,-150.0,0.00016986,2]
[395309010,1764607846419,-150.0,0.00016986,2]
[395309011,1764607846428,-150.0,0.00016986,2]
[395309012,1764607846439,-150.00000001,0.00016986,2]
[395309013,1764607846449,-150.63510212,0.00016986,2]
[395309014,1764607846460,-150.0,0.00016986,2]
[395309015,1764607846470,-150.0,0.00016986,2]
[395309016,1764607846480,-150.0,0.00016986,2]
[395309017,1764607846489,-150.0,0.00016986,2]
[395309018,1764607846498,-150.0,0.00016986,2]
[395309019,1764607846507,-150.0,0.00016986,2]
[395309020,1764607846516,-150.0,0.00016986,2]
[395309021,1764607846525,-3094.30864244,0.00016987,2]
[395309022,1764607846534,-546.51,0.00016989,2]
[395309023,1764607846543,-2230.59782528,0.0001699,2]
[395309024,1764607846552,-2230.59782528,0.0001699,2]
[395309025,1764607846561,-1399.0,0.00016992,2]
[395309026,1764607846570,-200.0,0.00016992,2]
[395309027,1764607846580,-500.0,0.00016992,2]
[395309028,1764607846589,-151.0,0.00016997,2]
[395309029,1764607846598,-500.0,0.00016999,2]
[395309030,1764607846607,-500.0,0.00016999,2]
[395309031,1764607846617,-500.0,0.00016999,2]
[395309032,1764607846626,-500.0,0.00016999,2]
[395309033,1764607846635,-500.0,0.00016999,2]
[395309034,1764607846648,-500.0,0.00016999,2]
[395309035,1764607846658,-500.0,0.00016999,2]
[395309036,1764607846667,-500.0,0.00016999,2]
[395309037,1764607846677,-300.0,0.00016999,2]
[395309038,1764607846687,-300.0,0.00016999,2]
[395309039,1764607846696,-500.0,0.00016999,2]
[395309040,1764607846705,-500.0,0.00016999,2]
[395309041,1764607846716,-500.0,0.00016999,2]
[395309042,1764607846726,-300.0,0.00016999,2]
[395309043,1764607846736,-300.0,0.00016999,2]
[395309044,1764607846747,-2113530.64797741,0.00017,2]
[395309045,1764607846756,-6742.26933708,0.00017,2]
[395309046,1764607846765,-4211048.56531536,0.00017,2]
[395309047,1764607846935,-443.58598797,0.00014708,2]
[395309048,1764607846947,-56.41401203,0.00014708,2]
[395309049,1764607846956,-413.78634732,0.00014708,2]
[395309050,1764607846966,-447.82919155,0.00014708,2]
[395309051,1764607846975,-43.56771148,0.00014708,2]
[395309052,1764607846987,-351.18360158,0.00014708,2]
[395309053,1764607846996,-500.0,0.00014708,2]
[395309054,1764607847006,-428.17139842,0.00014708,2]
[395309055,1764607847017,-71.82860158,0.00014708,2]
[395309056,1764607847026,-500.0,0.00016438,2]
[395309057,1764607847036,-89.21439896,0.00016438,2]
[395309058,1764607847079,-316.78325207,0.00014708,2]
[395309059,1764607847089,-410.78560104,0.00016438,2]
[395309060,1764607847099,-500.0,0.00016438,2]
[395309061,1764607847108,-500.0,0.00016438,2]
[395309062,1764607847117,-500.0,0.00016438,2]
[395309063,1764607847127,-500.0,0.00016438,2]
[395309064,1764607847137,-500.0,0.00016438,2]
[395309065,1764607847147,-40444.45932364,0.00017,2]
[395309066,1764607847159,-801.50537532,0.00017,2]
[395309067,1764607847814,-170.0,0.00014228,2]
[395309068,1764607847825,-170.14642402,0.00014708,2]
[395309069,1764607847835,-584.67029019,0.00014708,2]
[395309070,1764607847846,-1053.20336897,0.00015375,2]
[395309071,1764607847860,-500.0,0.00016438,2]
[395309072,1764607847870,-500.0,0.00016438,2]
[395309073,1764607847880,-500.0,0.00016438,2]
[395309074,1764607847890,-500.0,0.00016438,2]
[395309075,1764607847899,-500.0,0.00016438,2]
[395309076,1764607847909,-500.0,0.00016438,2]
[395309077,1764607847919,-117.96458987,0.00016438,2]
[395309078,1764607847943,-382.03541013,0.00016438,2]
[395309079,1764607847952,-500.0,0.00016438,2]
[395309080,1764607847962,-500.0,0.00016438,2]
[395309081,1764607847971,-500.0,0.00016438,2]
[395309082,1764607847981,-500.0,0.00016438,2]
[395309083,1764607847990,-500.0,0.00016438,2]
[395309084,1764607848000,-500.0,0.00016438,2]
[395309085,1764607848009,-500.0,0.00016438,2]
[395309086,1764607848019,-500.0,0.00016438,2]
[395309087,1764607848029,-500.0,0.00016438,2]
[395309088,1764607848039,-647.77650376,0.00016438,2]
[395309089,1764607848050,-500.0,0.00016438,2]
[395309090,1764607848060,-500.0,0.00016438,2]
[395309091,1764607848070,-500.0,0.00016438,2]
[395309092,1764607848080,-500.0,0.00016438,2]
[395309093,1764607848090,-500.0,0.00016438,2]
[395309094,1764607848103,-500.0,0.00016438,2]
[395309095,1764607848113,-500.0,0.00016438,2]
[395309096,1764607848122,-16.79943864,0.00016438,2]
[395309097,1764607849134,-483.20056136,0.00016438,2]
[395309098,1764607849145,-500.0,0.00016438,2]
[395309099,1764607849155,-14151.89530887,0.00017,2]
[395309100,1764607849167,-504693.50204282,0.00017,2]
[395309101,1764607849339,-1434.0,0.00014257,2]
[395309102,1764607849348,-274.0,0.0001613,2]
[395309103,1764607849358,-294.40883806,0.00017,2]
[395309104,1764607850556,150.0,0.00022,30]
[395309105,1764607880319,500.0,0.00022,30]
[395309106,1764607954713,207.17088019,0.00022,30]
[395309107,1764607957610,533.0,0.00022,30]
[395309109,1764607965218,150.0,0.00022,30]
[395309110,1764607975209,150.0,0.00022,30]
[395309111,1764607977569,150.0,0.00022,30]
[395309113,1764607992313,150.0,0.00022,30]
[395309114,1764607993820,500.0,0.00022,30]
[395309115,1764607997233,500.0,0.00022,30]
[395309116,1764607998720,150.0,0.00022,30]
[395309117,1764608006761,500.0,0.00022,30]
[395309118,1764608009942,150.0,0.00022,30]
[395309119,1764608127149,5105.0,0.00025,120]
[395309120,1764608194643,150.0,0.00022,30]
[395309121,1764608196234,556.0,0.00022,30]
[395309122,1764608206704,150.0,0.00022,30]
[395309123,1764608217156,152.07277894,0.00022,30]
[395309124,1764608218179,500.0,0.00022,30]
[395309125,1764608222354,150.0,0.00022,30]
[395309126,1764608224290,150.0,0.00022,30]
[395309127,1764608227351,150.0,0.00022,30]
[395309128,1764608233219,150.0,0.00022,30]
[395309129,1764608235261,150.0,0.00022,30]
[395309130,1764608239592,199.715824,0.00022,30]
[395309131,1764608240697,227.60481554,0.00022,30]
[395309132,1764608244470,150.0,0.00022,30]
[395309133,1764608253925,150.0,0.00022,30]
[395309134,1764608255320,150.0,0.00022,30]
[395309135,1764608257064,174.57641732,0.00022,30]
[395309136,1764608258232,150.0,0.00022,30]
[395309137,1764608263258,150.0,0.00022,30]
[395309138,1764608266501,150.0,0.00022,30]
[395309139,1764608377254,220.78,7.701e-05,2]
[395309140,1764608377397,220.78,8.106e-05,2]
[395309141,1764608377830,220.78,8.511e-05,2]
[395309142,1764608378084,220.78,8.917e-05,2]
[395309143,1764608378276,220.78,9.322e-05,2]
[395309144,1764608378488,220.78,9.727e-05,2]
[395309145,1764608378742,220.78,0.00010132,2]
[395309146,1764608378941,220.78,0.00010538,2]
[395309147,1764608379231,220.78,0.00010943,2]
[395309148,1764608379551,220.78,0.00011348,2]
[395309149,1764608379751,220.78,0.00011754,2]
[395309150,1764608405878,161.0,0.000145,4]
[395309151,1764608437385,-220.78,0.00012159,2]
[395309152,1764608441244,237.64786781,0.00022,30]
[395309153,1764608443020,150.0,0.00022,30]
[395309154,1764608454640,150.39296676,0.00022,30]
[395309155,1764608478254,151.0,0.00012159,2]
[395309156,1764608478398,18.1712,0.00012159,2]
[395309157,1764608563043,533.0,0.00022,30]
[395309158,1764608574893,150.0,0.00022,30]
[395309159,1764608587135,511.0,0.00022,30]
[395309160,1764608599313,500.0,0.00022,30]
[395309161,1764608602255,150.0,0.00022,30]
[395309162,1764608602324,150.0,0.00022,30]
[395309163,1764608610461,150.0,0.00022,30]
[395309164,1764608668597,258.73777718,0.00022,30]
[395309166,1764608703337,5000.0,0.00022,30]
[395309176,1764608919891,511.0,0.00022,30]
[395309177,1764608937699,500.0,0.00022,30]
[395309179,1764608947355,4995.0,0.00025,120]
[395309186,1764608965446,150.0,0.00022,30]
[395309189,1764609031652,-151.0,0.00012159,2]
[395309190,1764609031663,-99.0,0.00012159,2]
[395309191,1764609031676,-52.0,0.00012159,2]
[395309192,1764609031686,-220.78,0.00012564,2]
[395309193,1764609031696,-220.78,0.00012969,2]
[395309194,1764609031706,-337.92457167,0.00013199,2]
[395309195,1764609031716,-220.78,0.00013375,2]
[395309196,1764609031728,-193.62507971,0.0001368,2]
[395309197,1764609031739,-882.97,0.00013699,2]
[395309198,1764609031749,-220.78,0.0001378,2]
[395309199,1764609031766,-150.0,0.00013831,2]
[395309200,1764609031777,-300.0,0.00013989,2]
[395309201,1764609031788,-1200.0,0.00013989,2]
[395309202,1764609031799,-256.56034862,0.0001399,2]
[395309203,1764609031813,-8325.36598634,0.0001399,2]
[395309204,1764609031836,-2127.37987507,0.0001399,2]
[395309205,1764609031857,-2786.35378997,0.0001399,2]
[395309206,1764609031868,-237.63,0.00014006,2]
[395309207,1764609031879,-178.09526351,0.00014035,2]
[395309208,1764609031890,-1454.0,0.00014075,2]
[395309209,1764609031901,-220.78,0.00014185,2]
[395309210,1764609031912,-301.66,0.00014198,2]
[395309212,1764609031923,-251.0,0.00014234,2]
[395309214,1764609031934,-852.0,0.00014323,2]
[395309216,1764609031947,-20914.56961271,0.00014421,2]
[395309217,1764609031958,-351.06778967,0.00014421,2]
[395309218,1764609031970,-4723.75451061,0.00014467,2]
[395309219,1764609031987,-1305.0,0.00014467,2]
[395309225,1764609037640,-8965.13907135,0.00014467,2]
[395309226,1764609037650,-151.0,0.00014467,2]
[395309227,1764609037659,-151.0,0.00014467,2]
[395309228,1764609037669,-563.73595395,0.00014508,2]
[395309229,1764609037678,-183.24972814,0.00014508,2]
[395309230,1764609037688,-197.17225674,0.00014508,2]
[395309231,1764609037697,-157.08737192,0.00014508,2]
[395309232,1764609037706,-312.9759169,0.00014508,2]
[395309233,1764609037715,-322.70823138,0.00014509,2]
[395309234,1764609037725,-47384.98343916,0.00014509,2]
[395309235,1764609037761,-712615.01656084,0.00014509,2]
[395309236,1764609037771,-151.0,0.00014521,2]
[395309237,1764609037781,-1048.0,0.00014527,2]
[395309238,1764609037791,-433.0,0.00014529,2]
[395309239,1764609037801,-220.78,0.00014591,2]
[395309240,1764609037811,-699.51,0.000146,2]
[395309241,1764609037821,-151.0,0.000146,2]
[395309242,1764609037831,-151.0,0.000146,2]
[395309243,1764609037844,-151.0,0.000146,2]
[395309244,1764609037854,-151.0,0.000146,2]
[395309246,1764609037864,-151.0,0.000146,2]
[395309247,1764609037874,-151.0,0.000146,2]
[395309248,1764609037883,-151.0,0.000146,2]
[395309249,1764609037893,-277.33982032,0.000146,2]
[395309250,1764609037902,-500.0,0.000146,2]
[395309252,1764609037911,-500.0,0.000146,2]
[395309253,1764609037922,-500.0,0.000146,2]
[395309254,1764609037932,-500.0,0.000146,2]
[395309255,1764609037942,-500.0,0.000146,2]
[395309256,1764609037952,-500.0,0.000146,2]
[395309257,1764609037962,-200.0,0.000146,2]
[395309258,1764609037971,-500.0,0.000146,2]
[395309259,1764609037982,-500.0,0.000146,2]
[395309260,1764609037992,-362.57091125,0.000146,2]
[395309261,1764609038003,-500.0,0.000146,2]
[395309262,1764609038014,-200.0,0.000146,2]
[395309263,1764609038027,-2277.407,0.00014608,2]
[395309264,1764609038037,-173.213,0.00014608,2]
[395309265,1764609038048,-8272.86942617,0.00014608,2]
[395309266,1764609038058,-500.0,0.00014608,2]
[395309267,1764609038070,-571.55421177,0.00014608,2]
[395309268,1764609038080,-500.0,0.00014608,2]
[395309269,1764609038094,-520.83324818,0.00014608,2]
[395309270,1764609038104,-1000.0,0.00014609,2]
[395309271,1764609038115,-600.0,0.00014609,2]
[395309272,1764609038126,-237.63,0.00014784,2]
[395309273,1764609038136,-699.51,0.00014874,2]
[395309274,1764609038146,-473.16562091,0.00014908,2]
[395309275,1764609038157,-220.78,0.00014996,2]
[395309276,1764609038167,-151.0,0.00015069,2]
[395309277,1764609038177,-699.51,0.00015148,2]
[395309278,1764609038187,-600.0,0.00015157,2]
[395309279,1764609038197,-420.0,0.00015326,2]
[395309280,1764609038207,-1680.0,0.00015388,2]
[395309281,1764609038218,-220.78,0.00015401,2]
[395309282,1764609038228,-699.51,0.00015422,2]
[395309283,1764609038239,-237.63,0.00015562,2]
[395309284,1764609038248,-151.0,0.00015617,2]
[395309285,1764609038258,-322.70823138,0.00015652,2]
[395309286,1764609038269,-351.06778965,0.00015661,2]
[395309287,1764609038279,-20914.56961268,0.00015669,2]
[395309288,1764609038291,-150.0,0.00015695,2]
[395309289,1764609038301,-699.51,0.00015696,2]
[395309290,1764609038311,-600.0,0.00015705,2]
[395309291,1764609038321,-1310.37,0.00015722,2]
[395309292,1764609038331,-530.74174362,0.000159,2]
[395309293,1764609038343,-530.74174362,0.000159,2]
[395309294,1764609038354,-530.74174362,0.000159,2]
[395309295,1764609038365,-530.74174362,0.000159,2]
[395309296,1764609038376,-530.74174362,0.000159,2]
[395309297,1764609038386,-530.74174362,0.000159,2]
[395309298,1764609038396,-699.53706299,0.0001597,2]
[395309299,1764609038406,-250.0,0.00016066,2]
[395309300,1764609038417,-151.0,0.00016149,2]
[395309301,1764609038427,-151.0,0.00016149,2]
[395309302,1764609038436,-300.0,0.00016149,2]
[395309303,1764609038446,-514.84070869,0.00016149,2]
[395309304,1764609038456,-6000.0,0.00016149,2]
[395309305,1764609038465,-151.0,0.00016149,2]
[395309306,1764609038475,-2500.0,0.00016149,2]
[395309307,1764609038485,-1000.0,0.00016149,2]
[395309308,1764609038495,-311.1,0.00016149,2]
[395309309,1764609038506,-620.0,0.00016149,2]
[395309310,1764609038515,-2750.0,0.00016149,2]
[395309311,1764609038526,-248.71531821,0.00016149,2]
[395309312,1764609038535,-500.0,0.00016149,2]
[395309313,1764609038545,-578.20924308,0.00016149,2]
[395309314,1764609038555,-151.0,0.00016149,2]
[395309315,1764609038564,-2750.0,0.00016204,2]
[395309316,1764609038575,-600.0,0.00016253,2]
[395309317,1764609038585,-2750.0,0.00016259,2]
[395309318,1764609038595,-2750.0,0.00016314,2]
[395309319,1764609038606,-237.63,0.0001634,2]
[395309320,1764609038617,-2750.0,0.00016369,2]
[395309321,1764609038627,-500.0,0.00016438,2]
[395309322,1764609038638,-500.0,0.00016438,2]
[395309323,1764609038648,-500.0,0.00016438,2]
[395309324,1764609038658,-500.0,0.00016438,2]
[395309325,1764609038668,-500.0,0.00016438,2]
[395309326,1764609038678,-500.0,0.00016438,2]
[395309327,1764609038690,-500.0,0.00016438,2]
[395309328,1764609038700,-500.0,0.00016438,2]
[395309329,1764609038711,-500.0,0.00016438,2]
[395309330,1764609038721,-500.0,0.00016438,2]
[395309331,1764609038732,-500.0,0.00016438,2]
[395309332,1764609038742,-500.0,0.00016438,2]
[395309333,1764609038751,-500.0,0.00016438,2]
[395309334,1764609038761,-500.0,0.00016438,2]
[395309335,1764609038773,-500.0,0.00016438,2]
[395309336,1764609038783,-500.0,0.00016438,2]
[395309337,1764609038793,-500.0,0.00016438,2]
[395309338,1764609038802,-500.0,0.00016438,2]
[395309339,1764609038813,-500.0,0.00016438,2]
[395309340,1764609038822,-500.0,0.00016438,2]
[395309341,1764609038831,-500.0,0.00016438,2]
[395309342,1764609038842,-500.0,0.00016438,2]
[395309343,1764609038852,-500.0,0.00016438,2]
[395309344,1764609038861,-500.0,0.00016438,2]
[395309345,1764609038871,-500.0,0.00016438,2]
[395309346,1764609038881,-500.0,0.00016438,2]
[395309347,1764609038891,-500.0,0.00016438,2]
[395309348,1764609038902,-500.0,0.00016438,2]
[395309349,1764609038912,-621.37659198,0.00016438,2]
[395309350,1764609038921,-500.0,0.00016438,2]
[395309351,1764609038932,-500.0,0.00016438,2]
[395309352,1764609038941,-500.0,0.00016438,2]
[395309353,1764609038952,-500.0,0.00016438,2]
[395309354,1764609038963,-500.0,0.00016438,2]
[395309355,1764609038973,-500.0,0.00016438,2]
[395309356,1764609038983,-500.0,0.00016438,2]
[395309357,1764609038993,-542.38932777,0.00016438,2]
[395309358,1764609039004,-500.0,0.00016438,2]
[395309359,1764609039014,-500.0,0.00016438,2]
[395309360,1764609039027,-500.0,0.00016438,2]
[395309361,1764609039038,-500.0,0.00016438,2]
[395309362,1764609039048,-48597.38,0.00016438,2]
[395309363,1764609039059,-10821.11,0.00016438,2]
[395309364,1764609039068,-800.0,0.00016438,2]
[395309365,1764609039078,-5369.57,0.00016438,2]
[395309366,1764609039089,-500.0,0.00016595,2]
[395309367,1764609039100,-166.66,0.00016616,2]
[395309368,1764609039110,-427.65493559,0.00016654,2]
[395309369,1764609039120,-200.8894483,0.00016697,2]
[395309370,1764609039131,-151.0,0.00016697,2]
[395309371,1764609039141,-533.88981491,0.00016697,2]
[395309372,1764609039151,-642.94,0.00016697,2]
[395309373,1764609039161,-5888.0,0.00016781,2]
[395309374,1764609039172,-322.70823138,0.00016796,2]
[395309375,1764609039181,-600.0,0.00016801,2]
[395309376,1764609039192,-2195.51335,0.0001683,2]
[395309377,1764609039202,-2000.0,0.00016863,2]
[395309378,1764609039212,-2000.0,0.00016864,2]
[395309379,1764609039221,-200.0,0.00016864,2]
[395309380,1764609039232,-1402.54143348,0.00016867,2]
[395309381,1764609039242,-462.4718983,0.000169,2]
[395309382,1764609039252,-648.90649812,0.000169,2]
[395309383,1764609039263,-351.06778965,0.000169,2]
[395309384,1764609039272,-20914.56961268,0.00016917,2]
[395309385,1764609039281,-2351.0,0.00016927,2]
[395309386,1764609039291,-151.0,0.00016964,2]
[395309387,1764609039303,-7973.0,0.00016967,2]
[395309388,1764609039313,-7165.3951863,0.00016967,2]
[395309389,1764609039323,-1629.408198,0.00016967,2]
[395309390,1764609039335,-7069.8363611,0.00016967,2]
[395309391,1764609039346,-20056.8116662,0.00016967,2]
[395309392,1764609039357,-200778.5659157,0.00016967,2]
[395309393,1764609039367,-41536.9999341,0.00016967,2]
[395309394,1764609039377,-1342.8511484,0.00016967,2]
[395309395,1764609039388,-300.85730487,0.00016973,2]
[395309396,1764609039398,-162.69006403,0.00016973,2]
[395309397,1764609039408,-504.44408651,0.00016973,2]
[395309398,1764609039418,-500.0,0.00016973,2]
[395309399,1764609039427,-414.60784787,0.00016973,2]
[395309400,1764609039439,-500.0,0.00016973,2]
[395309401,1764609039449,-500.0,0.00016973,2]
[395309402,1764609039459,-360.33354768,0.00016973,2]
[395309403,1764609039468,-500.0,0.00016973,2]
[395309404,1764609039478,-500.0,0.00016973,2]
[395309405,1764609039488,-275.0,0.00016979,2]
[395309406,1764609039498,-1000.6191,0.00016999,2]
[395309407,1764609039507,-747215.49039083,0.00017,2]
[395309408,1764609039517,-1000.0,0.00017,2]
[395309409,1764609039527,-713.59779201,0.00017,2]
[395309411,1764609039538,-209.48,0.00017,2]
[395309412,1764609039547,-250.0,0.00017,2]
[395309413,1764609039557,-251.4,0.00017,2]
[395309414,1764609039566,-250.0,0.00017,2]
[395309415,1764609039576,-2195.51335,0.00017,2]
[395309416,1764609039588,-2195.51335,0.00017,2]
[395309417,1764609039598,-2195.51336,0.00017,2]
[395309418,1764609039607,-2195.51336,0.00017,2]
[395309419,1764609039616,-2195.51336,0.00017,2]
[395309420,1764609039626,-5888.0,0.00017018,2]
[395309421,1764609039635,-397.0,0.00017019,2]
[395309422,1764609039645,-397.0,0.00017022,2]
[395309423,1764609039655,-397.0,0.00017025,2]
[395309424,1764609039664,-397.0,0.00017062,2]
[395309425,1764609039673,-397.0,0.0001707,2]
[395309426,1764609039683,-397.0,0.00017073,2]
[395309427,1764609040087,-237.63,0.00017118,2]
[395309428,1764609040099,-281.92338086,0.0001714,2]
[395309429,1764609040109,-397.0,0.00017165,2]
[395309430,1764609040119,-151.0,0.00017245,2]
[395309431,1764609040129,-553.64373807,0.00017245,2]
[395309432,1764609040139,-510.04780743,0.00017245,2]
[395309433,1764609040149,-1000.0,0.00017279,2]
[395309434,1764609040159,-166.66,0.00017302,2]
[395309435,1764609040169,-200.0,0.00017339,2]
[395309436,1764609040179,-600.0,0.00017349,2]
[395309437,1764609040190,-477.24,0.00017362,2]
[395309438,1764609040199,-4005.0,0.00017364,2]
[395309439,1764609040209,-156.56507871,0.00017413,2]
[395309440,1764609040219,-166.66,0.00017479,2]
[395309441,1764609040228,-1603.0,0.00017481,2]
[395309442,1764609040238,-617.633,0.00017481,2]
[395309443,1764609040248,-740.057,0.00017481,2]
[395309444,1764609040257,-1263.732,0.00017481,2]
[395309445,1764609040267,-909.0,0.00017481,2]
[395309446,1764609040278,-1217.12,0.00017481,2]
[395309447,1764609040287,-4704.0,0.00017481,2]
[395309448,1764609040296,-6632.49,0.00017481,2]
[395309449,1764609040306,-252.0,0.00017481,2]
[395309450,1764609040315,-311.1,0.00017518,2]
[395309451,1764609040325,-151.0,0.00017518,2]
[395309452,1764609040335,-322.6107,0.00017518,2]
[395309453,1764609040345,-257.91778498,0.00017518,2]
[395309454,1764609040354,-151.0,0.00017518,2]
[395309455,1764609040363,-500.0,0.00017521,2]
[395309457,1764609040373,-500.0,0.00017521,2]
[395309458,1764609040382,-1000.0,0.00017521,2]
[395309459,1764609040391,-1000.0,0.00017521,2]
[395309460,1764609040401,-1000.0,0.00017521,2]
[395309461,1764609040410,-397.0,0.00017522,2]
[395309462,1764609040419,-397.0,0.00017581,2]
[395309463,1764609040430,-1500.0,0.000176,2]
[395309464,1764609040440,-1525.47,0.000176,2]
[395309465,1764609040449,-397.0,0.00017636,2]
[395309466,1764609040459,-425.5347,0.00017673,2]
[395309467,1764609040469,-1310.37,0.00017687,2]
[395309468,1764609040478,-397.0,0.0001774,2]
[395309469,1764609040487,-397.0,0.00017767,2]
[395309470,1764609040497,-500.0,0.00017773,2]
[395309471,1764609040507,-500.0,0.00017773,2]
[395309472,1764609040516,-500.0,0.00017773,2]
[395309473,1764609040526,-500.0,0.00017773,2]
[395309474,1764609040535,-500.0,0.00017773,2]
[395309475,1764609040545,-500.0,0.00017773,2]
[395309476,1764609040555,-500.0,0.00017773,2]
[395309477,1764609040565,-500.0,0.00017773,2]
[395309478,1764609040574,-500.0,0.00017773,2]
[395309479,1764609040584,-438.4223103,0.00017773,2]
[395309480,1764609040596,-500.0,0.00017773,2]
[395309481,1764609040606,-500.0,0.00017773,2]
[395309482,1764609040616,-500.0,0.00017773,2]
[395309483,1764609040626,-500.0,0.00017773,2]
[395309484,1764609040636,-500.0,0.00017773,2]
[395309485,1764609040646,-502.39177324,0.00017773,2]
[395309486,1764609040656,-207.34062351,0.00017773,2]
[395309487,1764609040667,-500.5084331,0.00017773,2]
[395309488,1764609040676,-160.09574989,0.00017773,2]
[395309489,1764609040686,-160.09684565,0.00017773,2]
[395309490,1764609040696,-160.09311838,0.00017773,2]
[395309491,1764609040705,-160.09796136,0.00017773,2]
[395309492,1764609040715,-500.0,0.00017773,2]
[395309493,1764609040724,-500.0,0.00017773,2]
[395309494,1764609040734,-500.0,0.00017773,2]
[395309495,1764609040743,-500.0,0.00017773,2]
[395309496,1764609040752,-500.0,0.00017773,2]
[395309497,1764609040761,-557.4345573,0.00017773,2]
[395309498,1764609040771,-156.08046811,0.00017773,2]
[395309499,1764609040780,-500.0,0.00017773,2]
[395309500,1764609040790,-281.76890158,0.00017773,2]
[395309501,1764609040799,-500.0,0.00017773,2]
[395309502,1764609040809,-500.0,0.00017773,2]
[395309503,1764609040819,-500.0,0.00017773,2]
[395309504,1764609040828,-500.0,0.00017773,2]
[395309505,1764609040839,-500.0,0.00017773,2]
[395309506,1764609040849,-500.0,0.00017773,2]
[395309507,1764609040858,-500.0,0.00017773,2]
[395309508,1764609040868,-500.0,0.00017773,2]
[395309509,1764609040877,-500.0,0.00017773,2]
[395309510,1764609040887,-500.0,0.00017773,2]
[395309511,1764609040896,-160.09780403,0.00017773,2]
[395309512,1764609040905,-500.0,0.00017773,2]
[395309513,1764609040914,-500.0,0.00017773,2]
[395309514,1764609040924,-500.0,0.00017773,2]
[395309515,1764609040934,-500.0,0.00017773,2]
[395309516,1764609040944,-500.0,0.00017773,2]
[395309517,1764609040953,-160.09973475,0.00017773,2]
[395309518,1764609040963,-500.0,0.00017773,2]
[395309519,1764609040973,-355.07457118,0.00017773,2]
[395309520,1764609040982,-500.0,0.00017773,2]
[395309521,1764609040992,-500.0,0.00017773,2]
[395309522,1764609041001,-500.0,0.00017773,2]
[395309523,1764609041011,-329.72446081,0.00017773,2]
[395309524,1764609041024,-151.0,0.00017793,2]
[395309525,1764609041033,-574.12855637,0.00017793,2]
[395309526,1764609041043,-107637.90679074,0.000178,2]
[395309527,1764609041054,-2000.0,0.000178,2]
[395309528,1764609041064,-237.63,0.00017896,2]
[395309529,1764609041074,-600.0,0.00017897,2]
[395309530,1764609041083,-500.0,0.00017899,2]
[395309531,1764609041098,-188303.15659067,0.000179,2]
[395309532,1764609041107,-322.70823138,0.00017939,2]
[395309533,1764609041117,-250.0,0.00017965,2]
[395309534,1764609041127,-150.0,0.00017965,2]
[395309535,1764609041136,-152.0,0.00017965,2]